fUSD/lending_fUSD_20250517
["ID","MTS","AMOUNT","RATE_DAILY","PERIOD"]
[361320017,1747468238055,-500.0,0.00013897,2]
[361320018,1747468238065,-500.0,0.00013897,2]
[361320019,1747468238075,-500.0,0.00013897,2]
[361320020,1747468238084,-500.0,0.00013897,2]
[361320021,1747468238096,-500.0,0.00013897,2]
[361320022,1747468238106,-500.0,0.00013897,2]
[361320023,1747468238116,-500.0,0.00013897,2]
[361320024,1747468238125,-500.0,0.00013897,2]
[361320025,1747468238136,-500.0,0.00013897,2]
[361320026,1747468238146,-500.0,0.00013897,2]
[361320027,1747468238158,-500.0,0.00013897,2]
[361320028,1747468238168,-500.0,0.00013897,2]
[361320029,1747468238177,-500.0,0.00013897,2]
[361320030,1747468238186,-500.0,0.00013897,2]
[361320031,1747468238195,-500.0,0.00013897,2]
[361320032,1747468238205,-500.0,0.00013897,2]
[361320033,1747468238214,-500.0,0.00013897,2]
[361320034,1747468238223,-500.0,0.00013897,2]
[361320035,1747468238232,-500.0,0.00013897,2]
[361320036,1747468238242,-500.0,0.00013897,2]
[361320037,1747468238251,-188.82876235,0.00013897,2]
[361320038,1747468238263,-311.17123765,0.00013897,2]
[361320039,1747468238272,-500.0,0.00013897,2]
[361320040,1747468238281,-500.0,0.00013897,2]
[361320041,1747468238290,-500.0,0.00013897,2]
[361320042,1747468238300,-500.0,0.00013897,2]
[361320043,1747468238309,-500.0,0.00013897,2]
[361320045,1747468238320,-500.0,0.00013897,2]
[361320046,1747468238330,-631.26240661,0.00013897,2]
[361320047,1747468238339,-500.0,0.00013897,2]
[361320048,1747468238348,-500.0,0.00013897,2]
[361320049,1747468238357,-193.56635574,0.00013897,2]
[361320051,1747468238369,-306.43364426,0.00013897,2]
[361320053,1747468238379,-500.0,0.00013897,2]
[361320055,1747468238388,-155.64635574,0.00013897,2]
[361320057,1747468238399,-344.35364426,0.00013897,2]
[361320059,1747468238408,-500.0,0.00013897,2]
[361320061,1747468238417,-500.0,0.00013897,2]
[361320063,1747468238426,-500.0,0.00013897,2]
[361320066,1747468238436,-500.0,0.00013897,2]
[361320068,1747468238445,-500.0,0.00013897,2]
[361320070,1747468238454,-500.0,0.00013897,2]
[361320073,1747468238463,-500.0,0.00013897,2]
[361320076,1747468238472,-4588.85440273,0.000139,2]
[361320078,1747468238482,-581.77785208,0.000139,2]
[361320080,1747468238491,-982.25366881,0.000139,2]
[361320082,1747468238500,-276.96,0.00013904,2]
[361320084,1747468238511,-276.96,0.00013907,2]
[361320086,1747468238520,-276.96,0.00013911,2]
[361320087,1747468238529,-276.96,0.00013915,2]
[361320088,1747468238538,-276.96,0.00013918,2]
[361320089,1747468238547,-276.96,0.00013922,2]
[361320090,1747468238556,-12044.04675235,0.00013952,2]
[361320091,1747468238565,-644.31459989,0.00013952,2]
[361320092,1747468238574,-216.59406397,0.00013952,2]
[361320093,1747468238583,-518.17010749,0.00013973,2]
[361320094,1747468238592,-500.0,0.00013973,2]
[361320095,1747468238601,-500.0,0.00013973,2]
[361320096,1747468238610,-548.69439025,0.00013973,2]
[361320097,1747468238619,-159.1814108,0.00013973,2]
[361320098,1747468238627,-500.51149635,0.00013973,2]
[361320099,1747468238636,-500.64792482,0.00013973,2]
[361320100,1747468238645,-500.0,0.00013973,2]
[361320101,1747468238654,-500.0,0.00013973,2]
[361320102,1747468238663,-500.0,0.00013973,2]
[361320103,1747468238672,-500.0,0.00013973,2]
[361320104,1747468238681,-500.37503577,0.00013973,2]
[361320105,1747468238690,-500.0,0.00013973,2]
[361320106,1747468238699,-500.0,0.00013973,2]
[361320107,1747468238707,-181.44713771,0.00013991,2]
[361320108,1747468238716,-224.54,0.00013999,2]
[361320109,1747468238725,-89297.72007887,0.00014,2]
[361320110,1747468238737,-1062.43331544,0.00014,2]
[361320111,1747468238747,-682.5605456,0.00014,2]
[361320112,1747468239085,-2172.89744947,0.00014,2]
[361320113,1747468239096,-1555.27519639,0.00014,2]
[361320114,1747468239271,-177569.70182649,0.00014,2]
[361320115,1747468239280,-696696.48876939,0.00014,2]
[361320116,1747468239291,-200.0,0.00014194,2]
[361320117,1747468239300,-200.0,0.00014194,2]
[361320118,1747468239585,-250.0,0.00014384,2]
[361320119,1747468239623,-500.60187347,0.00014521,2]
[361320120,1747468239632,-500.0,0.00014521,2]
[361320121,1747468239645,-1000.0,0.00014521,2]
[361320122,1747468239655,-1000.0,0.00014522,2]
[361320123,1747468239664,-200.0,0.00014777,2]
[361320124,1747468239674,-150.0,0.00014832,7]
[361320125,1747468239683,-534.38,0.00014898,2]
[361320126,1747468239693,-543.97523835,0.000149,2]
[361320127,1747468239702,-214.08,0.00014964,2]
[361320128,1747468239712,-12410.5,0.00014979,2]
[361320129,1747468239722,-10551.99276768,0.00015,2]
[361320130,1747468239731,-2064.1874785,0.00015009,2]
[361320131,1747468239743,-2064.18747851,0.00015009,2]
[361320132,1747468239754,-255.0,0.00015025,2]
[361320133,1747468239763,-151.0,0.00015037,2]
[361320134,1747468239772,-151.0,0.00015049,2]
[361320135,1747468239782,-151.0,0.00015061,2]
[361320136,1747468239791,-12044.04675229,0.00015068,2]
[361320137,1747468239800,-1500.0,0.00015068,2]
[361320138,1747468239809,-250.0,0.00015068,2]
[361320139,1747468239819,-250.0,0.00015068,2]
[361320140,1747468239829,-151.0,0.00015072,2]
[361320141,1747468239840,-13293.70082479,0.000151,2]
[361320142,1747468239850,-151.0,0.00015118,2]
[361320143,1747468239862,-420.0,0.00015227,2]
[361320144,1747468239871,-267.0,0.00015227,2]
[361320145,1747468239881,-695.88,0.00015255,2]
[361320146,1747468239891,-1680.0,0.00015287,2]
[361320147,1747468239900,-224.54,0.00015369,2]
[361320148,1747468239910,-256.64,0.00015435,2]
[361320149,1747468239920,-652.94,0.00015435,2]
[361320150,1747468239931,-216.59406397,0.00015452,2]
[361320151,1747468239940,-4261.57188742,0.00015454,2]
[361320152,1747468239949,-878.08,0.00015459,2]
[361320153,1747468239958,-151.0,0.00015469,2]
[361320154,1747468239967,-224.89,0.00015616,2]
[361320155,1747468239976,-2015.82774616,0.00015616,2]
[361320156,1747468239985,-700.0,0.000159,5]
[361320157,1747468239994,-515.75,0.00015949,2]
[361320158,1747468240004,-182.14,0.00016,2]
[361320159,1747468240014,-166.76,0.0001613,2]
[361320160,1747468240023,-1000.0,0.00016136,2]
[361320161,1747468240033,-12044.04675229,0.00016185,2]
[361320162,1747468240042,-150.0,0.00016248,2]
[361320163,1747468240051,-250.0,0.00016279,2]
[361320164,1747468240060,-13293.70082479,0.000163,2]
[361320165,1747468240069,-2669.34392318,0.00016319,2]
[361320166,1747468240079,-6692.18374818,0.00016398,2]
[361320167,1747468240090,-743.29556522,0.00016428,2]
[361320168,1747468240100,-300.23133331,0.00016438,2]
[361320169,1747468240111,-5469.113153,0.00016438,2]
[361320170,1747468240121,-5469.113153,0.00016438,2]
[361320171,1747468240131,-5469.113153,0.00016438,2]
[361320172,1747468240142,-5469.113153,0.00016438,2]
[361320173,1747468240152,-168.389397,0.00016438,2]
[361320174,1747468240162,-482.680512,0.00016438,2]
[361320175,1747468240172,-482.680512,0.00016438,2]
[361320176,1747468240183,-482.680512,0.00016438,2]
[361320177,1747468240192,-482.680512,0.00016438,2]
[361320178,1747468240202,-4815.430976,0.00016438,2]
[361320179,1747468240211,-4815.430976,0.00016438,2]
[361320180,1747468240222,-4815.430976,0.00016438,2]
[361320181,1747468240232,-4815.430976,0.00016438,2]
[361320182,1747468240242,-24032.75936055,0.00016488,2]
[361320183,1747468240253,-151.0,0.00016499,2]
[361320184,1747468240263,-153.38954,0.00016499,2]
[361320185,1747468240272,-151.0,0.00016499,2]
[361320186,1747468240282,-151.0,0.00016499,2]
[361320187,1747468240293,-214.08,0.00016627,2]
[361320188,1747468240303,-587.0,0.00016683,2]
[361320189,1747468240312,-182.14,0.000167,2]
[361320190,1747468240322,-6807.46935847,0.00016712,2]
[361320191,1747468240332,-224.54,0.00016739,2]
[361320192,1747468240342,-644.31459988,0.00016815,2]
[361320193,1747468240352,-574.5575358,0.00016815,2]
[361320194,1747468240363,-1987.0,0.00016815,2]
[361320195,1747468240372,-504.10452725,0.000169,2]
[361320196,1747468240382,-216.59406397,0.00016951,2]
[361320197,1747468240391,-5800.0,0.00016986,2]
[361320198,1747468240401,-1307.0,0.00017051,2]
[361320199,1747468240411,-1028.737,0.00017051,2]
[361320200,1747468240420,-629.0,0.00017051,2]
[361320201,1747468240430,-799.0,0.00017051,2]
[361320202,1747468240439,-1263.894,0.00017051,2]
[361320203,1747468240449,-585.0,0.00017051,2]
[361320204,1747468240459,-1265.566,0.00017051,2]
[361320205,1747468240469,-5942.0,0.00017051,2]
[361320206,1747468240478,-1458.0,0.00017051,2]
[361320207,1747468240488,-919.0,0.00017051,2]
[361320208,1747468240498,-553.0,0.00017051,2]
[361320209,1747468240509,-4039.0,0.00017051,2]
[361320210,1747468240518,-150.0,0.00017051,2]
[361320211,1747468240527,-6827.0,0.00017051,2]
[361320212,1747468240536,-150.0,0.00017051,2]
[361320213,1747468240548,-880.0,0.00017051,2]
[361320214,1747468240557,-277.949,0.00017051,2]
[361320215,1747468240567,-500.0,0.000172,2]
[361320216,1747468240577,-500.80248992,0.000172,2]
[361320217,1747468240588,-151.0,0.00017228,2]
[361320218,1747468240599,-151.0,0.00017228,2]
[361320219,1747468240610,-151.0,0.00017228,2]
[361320220,1747468240620,-151.0,0.00017228,2]
[361320221,1747468240630,-151.0,0.00017228,2]
[361320222,1747468240641,-151.0,0.00017228,2]
[361320223,1747468240651,-151.0,0.00017228,2]
[361320224,1747468240661,-151.0,0.00017228,2]
[361320225,1747468240670,-151.0,0.00017228,2]
[361320226,1747468240679,-151.0,0.00017228,2]
[361320227,1747468240688,-151.0,0.00017228,2]
[361320229,1747468240697,-151.0,0.00017228,2]
[361320231,1747468240706,-151.0,0.00017228,2]
[361320233,1747468240717,-151.0,0.00017228,2]
[361320234,1747468240726,-151.0,0.00017273,2]
[361320236,1747468240735,-1000.0,0.00017273,2]
[361320238,1747468240744,-151.0,0.00017273,2]
[361320240,1747468240753,-155.0,0.00017273,2]
[361320242,1747468240763,-151.0,0.00017273,2]
[361320244,1747468240772,-151.0,0.00017273,2]
[361320246,1747468240781,-668.65185757,0.00017273,2]
[361320247,1747468240790,-207.4,0.00017273,2]
[361320248,1747468240799,-668.65185757,0.00017273,2]
[361320249,1747468240808,-151.0,0.00017273,2]
[361320250,1747468240817,-12044.04675229,0.00017301,2]
[361320251,1747468240827,-1500.0,0.0001731,2]
[361320252,1747468240836,-151.0,0.00017328,2]
[361320253,1747468240845,-151.0,0.00017383,2]
[361320254,1747468240857,-500.0,0.00017433,2]
[361320255,1747468240866,-151.0,0.00017438,2]
[361320256,1747468240875,-151.0,0.00017493,2]
[361320257,1747468240886,-288.64,0.00017494,2]
[361320258,1747468240896,-13293.70082479,0.000175,2]
[361320259,1747468240905,-695.88,0.00017519,2]
[361320260,1747468240915,-151.0,0.00017548,2]
[361320261,1747468240924,-4734.4973674,0.0001759,2]
[361320262,1747468240934,-151.0,0.00017603,2]
[361320263,1747468240943,-151.0,0.00017658,2]
[361320264,1747468240954,-151.0,0.00017713,2]
[361320265,1747468240963,-974.81439784,0.00017748,2]
[361320266,1747468240973,-1000.0,0.00017749,2]
[361320267,1747468240983,-151.0,0.00017768,2]
[361320268,1747468240994,-457.73,0.00017782,2]
[361320269,1747468241005,-607.0,0.000178,2]
[361320270,1747468241014,-2000.0,0.000178,2]
[361320271,1747468241023,-1037.0,0.00017821,2]
[361320272,1747468241032,-151.0,0.00017821,2]
[361320273,1747468241041,-151.0,0.00017821,2]
[361320274,1747468241051,-693.3919763,0.00017821,2]
[361320275,1747468241061,-151.0,0.00017823,2]
[361320276,1747468241070,-151.0,0.00017878,2]
[361320277,1747468241079,-151.0,0.00017893,2]
[361320278,1747468241088,-151.0,0.00017893,2]
[361320279,1747468241097,-151.0,0.00017893,2]
[361320280,1747468241107,-167.4836735,0.000179,2]
[361320281,1747468241116,-182.14,0.000179,2]
[361320282,1747468241126,-294.13258147,0.00017933,2]
[361320283,1747468241135,-515.75,0.00017942,2]
[361320284,1747468241144,-500.30501865,0.00017981,2]
[361320285,1747468241153,-702.6,0.00018082,2]
[361320286,1747468241163,-457.73,0.00018082,2]
[361320287,1747468241172,-457.73,0.00018082,2]
[361320288,1747468241183,-224.54,0.00018109,2]
[361320289,1747468241192,-1711.44361187,0.00018216,2]
[361320290,1747468241201,-698.0,0.00018279,2]
[361320291,1747468241210,-529.45824741,0.0001828,2]
[361320292,1747468241220,-214.08,0.0001829,2]
[361320293,1747468241229,-1075.369,0.00018369,2]
[361320294,1747468241238,-151.80306497,0.00018369,2]
[361320295,1747468241248,-151.0,0.00018369,2]
[361320296,1747468241258,-719.04747942,0.00018369,2]
[361320297,1747468241267,-12044.04675229,0.00018418,2]
[361320298,1747468241276,-1957.0,0.00018508,2]
[361320299,1747468241286,-168.809,0.00018573,2]
[361320300,1747468241296,-1689.314,0.0001858,2]
[361320301,1747468241305,-2136.13709748,0.00018615,2]
[361320302,1747468241315,-156.587,0.00018642,2]
[361320303,1747468241325,-693.3919763,0.00018642,2]
[361320304,1747468241336,-215.0738,0.00018642,2]
[361320305,1747468241346,-1957.0,0.00018698,2]
[361320306,1747468241355,-13293.70082479,0.000187,2]
[361320307,1747468241365,-182.14,0.000188,2]
[361320308,1747468241374,-670.81,0.00018807,2]
[361320309,1747468241384,-1957.0,0.00018889,2]
[361320310,1747468241394,-182.14,0.000189,2]
[361320311,1747468241404,-1115.157653,0.00018917,2]
[361320312,1747468241414,-151.0,0.00018917,2]
[361320313,1747468241424,-745.65223616,0.00018917,2]
[361320314,1747468241433,-151.0,0.00018928,2]
[361320315,1747468241443,-151.0,0.00018928,2]
[361320316,1747468241452,-151.0,0.00018928,2]
[361320317,1747468241462,-151.0,0.00018928,2]
[361320318,1747468241471,-151.0,0.00018928,2]
[361320319,1747468241480,-151.0,0.00018928,2]
[361320320,1747468241490,-151.0,0.00018928,2]
[361320321,1747468241499,-151.0,0.00018928,2]
[361320322,1747468241511,-151.0,0.00018928,2]
[361320323,1747468241521,-151.0,0.00018928,2]
[361320324,1747468241531,-151.0,0.00018928,2]
[361320325,1747468241540,-151.0,0.00018928,2]
[361320326,1747468241549,-189.142324,0.00018928,2]
[361320327,1747468241558,-151.0,0.00018928,2]
[361320328,1747468241567,-151.0,0.00018928,2]
[361320329,1747468241576,-189.142324,0.00018928,2]
[361320330,1747468241585,-151.0,0.00018928,2]
[361320331,1747468241595,-151.0,0.00018928,2]
[361320332,1747468241604,-750.0,0.00019,7]
[361320333,1747468241613,-543.97523833,0.00019067,2]
[361320334,1747468241622,-1957.0,0.0001908,2]
[361320335,1747468241630,-592.85542232,0.0001908,2]
[361320336,1747468241640,-1000.0,0.00019165,2]
[361320337,1747468241649,-2000.0,0.00019178,2]
[361320338,1747468241657,-500.0,0.00019178,2]
[361320339,1747468241667,-500.0,0.00019178,2]
[361320340,1747468241677,-643.64782881,0.00019178,2]
[361320341,1747468241686,-151.0,0.00019178,2]
[361320342,1747468241695,-4000.0,0.00019178,2]
[361320343,1747468241704,-150.0,0.00019178,2]
[361320344,1747468241713,-770.78,0.00019178,2]
[361320345,1747468241722,-2002.30546924,0.00019205,7]
[361320346,1747468241732,-151.758566,0.00019224,2]
[361320347,1747468241741,-189.148134,0.00019224,2]
[361320348,1747468241750,-189.148134,0.00019224,2]
[361320349,1747468241762,-180.899911,0.00019224,2]
[361320350,1747468241771,-180.899911,0.00019224,2]
[361320351,1747468241781,-1690.965831,0.00019224,2]
[361320352,1747468241792,-1690.965831,0.00019224,2]
[361320353,1747468241802,-570.986359,0.00019224,2]
[361320354,1747468241815,-570.986359,0.00019224,2]
[361320355,1747468241825,-823.205079,0.00019224,2]
[361320356,1747468241835,-823.205079,0.00019224,2]
[361320357,1747468241845,-1957.0,0.00019271,2]
[361320358,1747468241861,-1808.0,0.000193,2]
[361320359,1747468241870,-173.42,0.00019316,2]
[361320360,1747468241880,-166.76,0.00019356,2]
[361320361,1747468241889,-1000.0,0.00019363,2]
[361320362,1747468241899,-1000.0,0.00019451,2]
[361320363,1747468241908,-1957.0,0.00019462,2]
[361320364,1747468241917,-1156.41848616,0.00019465,2]
[361320365,1747468241929,-151.0,0.00019465,2]
[361320366,1747468241941,-773.2413689,0.00019465,2]
[361320367,1747468241951,-224.54,0.00019479,2]
[361320368,1747468241960,-12044.04675229,0.00019534,2]
[361320369,1747468241970,-1000.0,0.00019568,2]
[361320370,1747468241979,-1382.0,0.000196,2]
[361320371,1747468241988,-1058.78,0.000196,2]
[361320372,1747468241999,-1957.0,0.00019652,2]
[361320373,1747468242009,-644.31459988,0.00019677,2]
[361320374,1747468242019,-150.0,0.00019683,2]
[361320375,1747468242028,-500.0,0.00019691,2]
[361320376,1747468242040,-500.0,0.00019691,2]
[361320377,1747468242050,-200.0,0.00019691,2]
[361320378,1747468242059,-1000.0,0.000197,2]
[361320379,1747468242068,-156.587,0.00019726,2]
[361320380,1747468242077,-150.0,0.00019765,5]
[361320381,1747468242086,-168.31655693,0.00019765,2]
[361320382,1747468242095,-157.64460667,0.00019765,2]
[361320383,1747468242104,-150.0,0.00019765,2]
[361320384,1747468242113,-500.0,0.00019765,2]
[361320385,1747468242122,-150.0,0.00019765,2]
[361320386,1747468242132,-695.88,0.00019783,2]
[361320387,1747468242142,-154.71703108,0.00019792,5]
[361320388,1747468242151,-150.0,0.00019792,2]
[361320389,1747468242160,-500.0,0.00019792,2]
[361320390,1747468242170,-169.77904493,0.00019792,2]
[361320391,1747468242180,-306.6252238,0.000198,2]
[361320392,1747468242189,-10335.17848756,0.000198,5]
[361320393,1747468242198,-151.0,0.000198,2]
[361320394,1747468242208,-151.0,0.000198,2]
[361320395,1747468242217,-151.0,0.000198,2]
[361320396,1747468242227,-1100.0,0.000198,7]
[361320397,1747468242236,-2354.0,0.000198,3]
[361320398,1747468242244,-246.27064749,0.0001982,2]
[361320399,1747468242253,-10987.0,0.00019863,2]
[361320400,1747468242264,-505.49284489,0.00019873,2]
[361320401,1747468242273,-10971.86328861,0.00019889,2]
[361320402,1747468242283,-235.92460363,0.00019894,2]
[361320403,1747468242292,-333.0,0.00019895,2]
[361320404,1747468242301,-333.0,0.00019896,2]
[361320405,1747468242311,-333.0,0.00019896,2]
[361320406,1747468242320,-333.0,0.00019896,2]
[361320407,1747468242329,-333.0,0.00019896,2]
[361320408,1747468242338,-333.0,0.00019896,2]
[361320409,1747468242348,-333.0,0.00019896,2]
[361320410,1747468242357,-333.0,0.00019896,2]
[361320411,1747468242366,-333.0,0.00019897,2]
[361320412,1747468242376,-333.0,0.00019897,2]
[361320413,1747468242385,-333.0,0.00019897,2]
[361320414,1747468242394,-333.0,0.00019897,2]
[361320415,1747468242403,-333.0,0.00019897,2]
[361320416,1747468242413,-333.0,0.00019897,2]
[361320417,1747468242422,-333.0,0.00019897,2]
[361320418,1747468242432,-333.0,0.00019897,2]
[361320419,1747468242441,-151.0,0.00019897,2]
[361320420,1747468242451,-151.0,0.00019897,2]
[361320421,1747468242460,-151.0,0.00019897,2]
[361320422,1747468242471,-151.0,0.00019897,2]
[361320423,1747468242482,-151.0,0.00019897,2]
[361320424,1747468242492,-151.0,0.00019897,2]
[361320425,1747468242501,-220.77918076,0.00019897,2]
[361320426,1747468242512,-151.0,0.00019897,2]
[361320427,1747468242521,-151.0,0.00019897,2]
[361320428,1747468242531,-151.0,0.00019897,2]
[361320429,1747468242540,-151.0,0.00019897,2]
[361320430,1747468242549,-151.0,0.00019897,2]
[361320431,1747468242558,-151.0,0.00019897,2]
[361320432,1747468242567,-151.0,0.00019897,2]
[361320433,1747468242576,-151.0,0.00019897,2]
[361320434,1747468242585,-151.0,0.00019897,2]
[361320435,1747468242594,-151.0,0.00019897,2]
[361320436,1747468242603,-151.0,0.00019897,2]
[361320437,1747468242612,-151.0,0.00019897,2]
[361320438,1747468242621,-151.0,0.00019897,2]
[361320439,1747468242630,-151.0,0.00019897,2]
[361320440,1747468242640,-151.0,0.00019897,2]
[361320441,1747468242649,-151.0,0.00019897,2]
[361320442,1747468242658,-151.0,0.00019897,2]
[361320443,1747468242668,-151.0,0.00019897,2]
[361320444,1747468242677,-151.0,0.00019897,2]
[361320445,1747468242686,-151.0,0.00019897,2]
[361320446,1747468242694,-189.142324,0.00019897,2]
[361320447,1747468242703,-189.142324,0.00019897,2]
[361320448,1747468242712,-151.0,0.00019897,2]
[361320449,1747468242722,-216.453433,0.00019897,2]
[361320450,1747468242731,-151.0,0.00019897,2]
[361320451,1747468242739,-189.142324,0.00019897,2]
[361320452,1747468242749,-189.142324,0.00019897,2]
[361320453,1747468242758,-151.0,0.00019897,2]
[361320454,1747468242767,-151.0,0.00019897,2]
[361320455,1747468242776,-151.0,0.00019897,2]
[361320456,1747468242785,-151.0,0.00019897,2]
[361320457,1747468242795,-189.148134,0.00019897,2]
[361320458,1747468242804,-189.148134,0.00019897,2]
[361320459,1747468242813,-276.04430362,0.00019897,2]
[361320460,1747468242822,-180.899911,0.00019897,2]
[361320461,1747468242831,-180.899911,0.00019897,2]
[361320462,1747468242840,-94622.2779983,0.00019897,2]
[361320473,1747468245265,-839.0,0.00017051,2]
[361320474,1747468245275,-29472.1804469,0.00019897,2]
[361320475,1747468245302,-7606.1419347,0.00019897,2]
[361320476,1747468245312,-993.8580653,0.00019897,2]
[361320477,1747468245392,-17287.18305457,0.00019897,2]
[361320478,1747468245403,-9924.00351963,0.00019897,2]
[361320479,1747468245412,-1185.58130201,0.00019897,2]
[361320480,1747468245423,-505.38452899,0.00019897,2]
[361320481,1747468245433,-1690.965831,0.00019897,2]
[361320482,1747468245442,-8137.4610906,0.00019897,2]
[361320483,1747468245451,-151.0,0.00019897,2]
[361320484,1747468245461,-41069.7802787,0.00019897,2]
[361320485,1747468245470,-3837.9023436,0.00019897,2]
[361320486,1747468245481,-22472.5359593,0.00019897,2]
[361320487,1747468245490,-570.986359,0.00019897,2]
[361320488,1747468245499,-570.986359,0.00019897,2]
[361320489,1747468245509,-21122.18329831,0.00019897,2]
[361320493,1747468247678,-151.0,0.00015147,2]
[361320494,1747468247688,-706.93309099,0.00019897,2]
[361320495,1747468247697,-823.205079,0.00019897,2]
[361320496,1747468247706,-823.205079,0.00019897,2]
[361320497,1747468247717,-151.0,0.00019897,2]
[361320498,1747468247726,-151.0,0.00019897,2]
[361320499,1747468247735,-219.294361,0.00019897,2]
[361320500,1747468247744,-151.0,0.00019897,2]
[361320501,1747468247753,-151.0,0.00019897,2]
[361320502,1747468247763,-151.0,0.00019897,2]
[361320503,1747468247772,-10000.0,0.00019897,2]
[361320504,1747468247781,-10000.0,0.00019897,2]
[361320505,1747468247790,-10000.0,0.00019897,2]
[361320506,1747468247799,-10049.941103,0.00019897,2]
[361320507,1747468247808,-1419.953396,0.00019897,2]
[361320508,1747468247817,-1419.953396,0.00019897,2]
[361320509,1747468247826,-151.0,0.00019897,2]
[361320510,1747468247836,-174.676059,0.00019897,2]
[361320511,1747468247845,-174.676059,0.00019897,2]
[361320512,1747468247855,-2236.945351,0.00019897,2]
[361320513,1747468247866,-2236.945351,0.00019897,2]
[361320514,1747468247875,-156.053829,0.00019897,2]
[361320515,1747468247885,-151.0,0.00019897,2]
[361320516,1747468247895,-156.053829,0.00019897,2]
[361320517,1747468247905,-190.638249,0.00019897,2]
[361320518,1747468247914,-151.0,0.00019897,2]
[361320519,1747468247923,-151.230817,0.00019897,2]
[361320520,1747468247934,-151.0,0.00019897,2]
[361320521,1747468247944,-151.0,0.00019897,2]
[361320522,1747468247954,-333.0,0.00019898,2]
[361320523,1747468247963,-333.0,0.00019898,2]
[361320524,1747468247973,-333.0,0.00019898,2]
[361320525,1747468247982,-333.0,0.00019898,2]
[361320526,1747468247991,-333.0,0.00019898,2]
[361320527,1747468248001,-333.0,0.00019898,2]
[361320528,1747468248011,-333.0,0.00019898,2]
[361320529,1747468248021,-333.0,0.00019898,2]
[361320530,1747468248030,-197.977294,0.00019898,2]
[361320531,1747468248040,-151185.04081178,0.000199,2]
[361320532,1747468248048,-82785.92795395,0.000199,2]
[361320533,1747468248058,-428.05904603,0.000199,2]
[361320534,1747468248067,-4757.17172047,0.000199,3]
[361320535,1747468248077,-151.0,0.000199,2]
[361320536,1747468248086,-151.213998,0.000199,2]
[361320537,1747468248096,-151.0,0.000199,2]
[361320538,1747468248105,-152.84996,0.000199,2]
[361320539,1747468248115,-151.0,0.000199,2]
[361320540,1747468248125,-151.0,0.000199,2]
[361320541,1747468248136,-338452.55326746,0.000199,7]
[361320542,1747468248145,-151.0,0.000199,2]
[361320543,1747468248155,-151.0,0.000199,2]
[361320544,1747468248165,-151.0,0.000199,2]
[361320545,1747468248175,-151.0,0.000199,2]
[361320546,1747468248185,-151.0,0.000199,2]
[361320547,1747468248195,-182.395184,0.000199,2]
[361320548,1747468248204,-151.0,0.000199,2]
[361320549,1747468248214,-151.0,0.000199,2]
[361320550,1747468248223,-151.0,0.000199,2]
[361320551,1747468248233,-151.0,0.000199,2]
[361320552,1747468248242,-151.0,0.000199,2]
[361320553,1747468248252,-152.287236,0.000199,2]
[361320554,1747468248262,-189.142324,0.000199,2]
[361320555,1747468248271,-189.142324,0.000199,2]
[361320556,1747468248281,-151.0,0.000199,2]
[361320557,1747468248290,-151.0,0.000199,2]
[361320558,1747468248300,-151.0,0.000199,2]
[361320559,1747468248311,-189.148134,0.000199,2]